[Event "Live Chess"]
[Site "Chess.com"]
[Date "2010.12.16"]
[Round "-"]
[White "hipposcottimus"]
[Black "Sassytime"]
[Result "0-1"]
[CurrentPosition "r4rk1/3p1p2/8/p4P2/4n3/8/PPP3q1/4KR2 w - -"]
[Timezone "UTC"]
[ECO "C50"]
[ECOUrl "https://www.chess.com/openings/Italian-Game"]
[UTCDate "2010.12.16"]
[UTCTime "06:05:53"]
[WhiteElo "1625"]
[BlackElo "1553"]
[TimeControl "60"]
[Termination "Sassytime won on time"]
[StartTime "06:05:53"]
[EndDate "2010.12.16"]
[EndTime "06:07:54"]
[Link "https://www.chess.com/game/live/77779818"]

1. e4 {[%clk 0:01:00]} 1... e5 {[%clk 0:01:00]} 2. Nf3 {[%clk 0:00:59.4]} 2... Nc6 {[%clk 0:01:00]} 3. Bc4 {[%clk 0:00:58.5]} 3... g6 {[%clk 0:00:59.5]} 4. d4 {[%clk 0:00:56.6]} 4... exd4 {[%clk 0:00:58]} 5. Nxd4 {[%clk 0:00:55.3]} 5... Nge7 {[%clk 0:00:56.5]} 6. Nc3 {[%clk 0:00:48.5]} 6... Bg7 {[%clk 0:00:54.8]} 7. Be3 {[%clk 0:00:43.3]} 7... O-O {[%clk 0:00:52.7]} 8. O-O {[%clk 0:00:41.6]} 8... a6 {[%clk 0:00:51.2]} 9. Bb3 {[%clk 0:00:39.2]} 9... b5 {[%clk 0:00:49.2]} 10. f4 {[%clk 0:00:35.4]} 10... Bb7 {[%clk 0:00:47.1]} 11. e5 {[%clk 0:00:33.8]} 11... Nxd4 {[%clk 0:00:43.6]} 12. Bxd4 {[%clk 0:00:33.5]} 12... Nf5 {[%clk 0:00:42.8]} 13. Be3 {[%clk 0:00:32.2]} 13... Nxe3 {[%clk 0:00:41.2]} 14. Qf3 {[%clk 0:00:30.5]} 14... Nf5 {[%clk 0:00:40.1]} 15. Qg3 {[%clk 0:00:29.2]} 15... c5 {[%clk 0:00:37.6]} 16. Qd3 {[%clk 0:00:25]} 16... c4 {[%clk 0:00:36.1]} 17. Bxc4 {[%clk 0:00:22.2]} 17... bxc4 {[%clk 0:00:35.1]} 18. Qxc4 {[%clk 0:00:21.9]} 18... a5 {[%clk 0:00:34.3]} 19. Nd5 {[%clk 0:00:21.4]} 19... Ba6 {[%clk 0:00:32.4]} 20. Qb3 {[%clk 0:00:19.9]} 20... Bxf1 {[%clk 0:00:31.1]} 21. Rxf1 {[%clk 0:00:18.7]} 21... Ne7 {[%clk 0:00:30.5]} 22. Nf6+ {[%clk 0:00:17.8]} 22... Bxf6 {[%clk 0:00:28.7]} 23. exf6 {[%clk 0:00:17.4]} 23... Nf5 {[%clk 0:00:27.9]} 24. Qh3 {[%clk 0:00:16.8]} 24... Qxf6 {[%clk 0:00:25.3]} 25. g4 {[%clk 0:00:16]} 25... Nd6 {[%clk 0:00:21.6]} 26. f5 {[%clk 0:00:15.1]} 26... g5 {[%clk 0:00:19.9]} 27. Qh5 {[%clk 0:00:10]} 27... h6 {[%clk 0:00:19.2]} 28. h4 {[%clk 0:00:08.9]} 28... Qg7 {[%clk 0:00:18.1]} 29. hxg5 {[%clk 0:00:07.4]} 29... Qxg5 {[%clk 0:00:17.7]} 30. Qxh6 {[%clk 0:00:06.2]} 30... Qxh6 {[%clk 0:00:16.6]} 31. g5 {[%clk 0:00:05.7]} 31... Qxg5+ {[%clk 0:00:16]} 32. Kf2 {[%clk 0:00:03.5]} 32... Qg2+ {[%clk 0:00:16]} 33. Ke1 {[%clk 0:00:00.4]} 33... Ne4 {[%clk 0:00:16]} 0-1

[Event "Live Chess"]
[Site "Chess.com"]
[Date "2010.12.16"]
[Round "-"]
[White "ereeste"]
[Black "hipposcottimus"]
[Result "0-1"]
[CurrentPosition "6rk/p4p1p/b7/3N2p1/8/6P1/P2q1PBP/4R1K1 w - -"]
[Timezone "UTC"]
[ECO "A10"]
[ECOUrl "https://www.chess.com/openings/English-Opening-Jaenisch-Gambit"]
[UTCDate "2010.12.16"]
[UTCTime "06:03:14"]
[WhiteElo "1267"]
[BlackElo "1634"]
[TimeControl "60"]
[Termination "hipposcottimus won on time"]
[StartTime "06:03:14"]
[EndDate "2010.12.16"]
[EndTime "06:05:06"]
[Link "https://www.chess.com/game/live/77779350"]

1. c4 {[%clk 0:01:00]} 1... b5 {[%clk 0:01:00]} 2. b3 {[%clk 0:00:58.3]} 2... bxc4 {[%clk 0:00:56.6]} 3. bxc4 {[%clk 0:00:56.9]} 3... d5 {[%clk 0:00:55.7]} 4. cxd5 {[%clk 0:00:55.3]} 4... Qxd5 {[%clk 0:00:54.9]} 5. e3 {[%clk 0:00:54.3]} 5... Qd8 {[%clk 0:00:54.7]} 6. Nc3 {[%clk 0:00:53]} 6... e5 {[%clk 0:00:54.2]} 7. g3 {[%clk 0:00:51.8]} 7... Nf6 {[%clk 0:00:53.5]} 8. Bg2 {[%clk 0:00:50.9]} 8... Bd6 {[%clk 0:00:51]} 9. Nge2 {[%clk 0:00:49.3]} 9... O-O {[%clk 0:00:50.7]} 10. d4 {[%clk 0:00:47.9]} 10... Ba6 {[%clk 0:00:50.3]} 11. dxe5 {[%clk 0:00:44.4]} 11... Bxe5 {[%clk 0:00:49.5]} 12. O-O {[%clk 0:00:42]} 12... c5 {[%clk 0:00:48.6]} 13. Ne4 {[%clk 0:00:37.5]} 13... Qe7 {[%clk 0:00:43.1]} 14. Nxf6+ {[%clk 0:00:31.6]} 14... Qxf6 {[%clk 0:00:41.5]} 15. Bxa8 {[%clk 0:00:29.7]} 15... Bxa1 {[%clk 0:00:39.8]} 16. Bg2 {[%clk 0:00:24.9]} 16... Nc6 {[%clk 0:00:33.9]} 17. Nf4 {[%clk 0:00:22.2]} 17... g5 {[%clk 0:00:31.8]} 18. Nd5 {[%clk 0:00:20.4]} 18... Qe5 {[%clk 0:00:27.5]} 19. Ba3 {[%clk 0:00:11.6]} 19... Kh8 {[%clk 0:00:27]} 20. Bxc5 {[%clk 0:00:09.3]} 20... Rg8 {[%clk 0:00:25.9]} 21. Bd4 {[%clk 0:00:06.4]} 21... Bxd4 {[%clk 0:00:22.8]} 22. Qxd4 {[%clk 0:00:04.7]} 22... Nxd4 {[%clk 0:00:21.9]} 23. exd4 {[%clk 0:00:03.4]} 23... Qxd4 {[%clk 0:00:20.8]} 24. Re1 {[%clk 0:00:01.4]} 24... Qd2 {[%clk 0:00:19.5]} 0-1

[Event "Live Chess"]
[Site "Chess.com"]
[Date "2010.12.16"]
[Round "-"]
[White "hipposcottimus"]
[Black "kiko_matching"]
[Result "1-0"]
[CurrentPosition "6k1/p3r2p/6p1/4p3/8/3p4/6PP/2R4K b - -"]
[Timezone "UTC"]
[ECO "C02"]
[ECOUrl "https://www.chess.com/openings/French-Defense-Advance-Variation-3...c5"]
[UTCDate "2010.12.16"]
[UTCTime "02:08:56"]
[WhiteElo "1632"]
[BlackElo "1853"]
[TimeControl "60"]
[Termination "hipposcottimus won on time"]
[StartTime "02:08:56"]
[EndDate "2010.12.16"]
[EndTime "02:11:10"]
[Link "https://www.chess.com/game/live/77730752"]

1. e4 {[%clk 0:01:00]} 1... e6 {[%clk 0:01:00]} 2. d4 {[%clk 0:00:58.6]} 2... d5 {[%clk 0:00:59.6]} 3. e5 {[%clk 0:00:58.2]} 3... c5 {[%clk 0:00:58.7]} 4. f4 {[%clk 0:00:58]} 4... cxd4 {[%clk 0:00:57.2]} 5. Nf3 {[%clk 0:00:57.7]} 5... Nc6 {[%clk 0:00:56.9]} 6. Nxd4 {[%clk 0:00:57]} 6... g6 {[%clk 0:00:56]} 7. Nxc6 {[%clk 0:00:55.7]} 7... bxc6 {[%clk 0:00:54.8]} 8. c4 {[%clk 0:00:55.3]} 8... Bg7 {[%clk 0:00:54.4]} 9. cxd5 {[%clk 0:00:53.4]} 9... cxd5 {[%clk 0:00:52.9]} 10. Be3 {[%clk 0:00:52.5]} 10... Ne7 {[%clk 0:00:52]} 11. Bf2 {[%clk 0:00:51.9]} 11... O-O {[%clk 0:00:51.5]} 12. Bb5 {[%clk 0:00:50.8]} 12... Rb8 {[%clk 0:00:50.1]} 13. Ba4 {[%clk 0:00:50.2]} 13... Rxb2 {[%clk 0:00:49]} 14. O-O {[%clk 0:00:48.5]} 14... Bd7 {[%clk 0:00:43.5]} 15. Bd4 {[%clk 0:00:46.9]} 15... Bb5 {[%clk 0:00:40.9]} 16. Bxb5 {[%clk 0:00:45.4]} 16... Rxb5 {[%clk 0:00:39.9]} 17. Nc3 {[%clk 0:00:44.4]} 17... Rb7 {[%clk 0:00:38.6]} 18. a4 {[%clk 0:00:42.1]} 18... Nc6 {[%clk 0:00:38]} 19. a5 {[%clk 0:00:40.1]} 19... f6 {[%clk 0:00:36.4]} 20. a6 {[%clk 0:00:38.1]} 20... Rc7 {[%clk 0:00:33.5]} 21. Bc5 {[%clk 0:00:34.9]} 21... Rff7 {[%clk 0:00:31.6]} 22. Bd6 {[%clk 0:00:33.3]} 22... Rcd7 {[%clk 0:00:29.8]} 23. Nb5 {[%clk 0:00:31.2]} 23... fxe5 {[%clk 0:00:28.1]} 24. fxe5 {[%clk 0:00:26.5]} 24... Nxe5 {[%clk 0:00:27.2]} 25. Rxf7 {[%clk 0:00:24.2]} 25... Rxf7 {[%clk 0:00:25.6]} 26. Qe1 {[%clk 0:00:20.5]} 26... Qb6+ {[%clk 0:00:22]} 27. Kh1 {[%clk 0:00:13]} 27... Qxb5 {[%clk 0:00:21.1]} 28. Bxe5 {[%clk 0:00:12.5]} 28... Bxe5 {[%clk 0:00:19.9]} 29. Qxe5 {[%clk 0:00:12.2]} 29... Qc6 {[%clk 0:00:15.8]} 30. Re1 {[%clk 0:00:09.6]} 30... Re7 {[%clk 0:00:11.9]} 31. Qf6 {[%clk 0:00:08.6]} 31... Qd6 {[%clk 0:00:09.6]} 32. Qd4 {[%clk 0:00:07.8]} 32... e5 {[%clk 0:00:07.6]} 33. Qg4 {[%clk 0:00:07.5]} 33... Qxa6 {[%clk 0:00:06]} 34. Qe2 {[%clk 0:00:04.7]} 34... Qxe2 {[%clk 0:00:02.5]} 35. Rxe2 {[%clk 0:00:04.4]} 35... d4 {[%clk 0:00:02]} 36. Re1 {[%clk 0:00:03.9]} 36... d3 {[%clk 0:00:01.1]} 37. Rc1 {[%clk 0:00:03.6]} 1-0

[Event "Live Chess"]
[Site "Chess.com"]
[Date "2010.12.16"]
[Round "-"]
[White "elom"]
[Black "hipposcottimus"]
[Result "0-1"]
[CurrentPosition "3r2k1/pp3ppp/8/2p5/4P2P/2Q1K1b1/PPP1bq2/R5R1 w - -"]
[Timezone "UTC"]
[ECO "C47"]
[ECOUrl "https://www.chess.com/openings/Four-Knights-Game-Scotch-Variation"]
[UTCDate "2010.12.16"]
[UTCTime "02:05:22"]
[WhiteElo "1503"]
[BlackElo "1618"]
[TimeControl "60"]
[Termination "hipposcottimus won by checkmate"]
[StartTime "02:05:22"]
[EndDate "2010.12.16"]
[EndTime "02:07:13"]
[Link "https://www.chess.com/game/live/77730047"]

1. e4 {[%clk 0:01:00]} 1... e5 {[%clk 0:01:00]} 2. Nf3 {[%clk 0:00:59.2]} 2... Nc6 {[%clk 0:00:59.6]} 3. Nc3 {[%clk 0:00:58.5]} 3... Nf6 {[%clk 0:00:56.9]} 4. d4 {[%clk 0:00:56.9]} 4... d5 {[%clk 0:00:54.9]} 5. exd5 {[%clk 0:00:54]} 5... exd4 {[%clk 0:00:53.9]} 6. Nxd4 {[%clk 0:00:52.2]} 6... Nxd4 {[%clk 0:00:52.4]} 7. Qxd4 {[%clk 0:00:51.3]} 7... Bd6 {[%clk 0:00:50.1]} 8. Bb5+ {[%clk 0:00:50.3]} 8... Bd7 {[%clk 0:00:47.4]} 9. Bc4 {[%clk 0:00:48.3]} 9... O-O {[%clk 0:00:45.6]} 10. Bg5 {[%clk 0:00:47]} 10... Re8+ {[%clk 0:00:45.1]} 11. Ne2 {[%clk 0:00:45.1]} 11... Bg4 {[%clk 0:00:39.6]} 12. f3 {[%clk 0:00:42.9]} 12... c5 {[%clk 0:00:32]} 13. Qc3 {[%clk 0:00:41.5]} 13... Nxd5 {[%clk 0:00:25.3]} 14. Bxd5 {[%clk 0:00:40.1]} 14... Qxg5 {[%clk 0:00:23.2]} 15. Be4 {[%clk 0:00:33.6]} 15... Bh5 {[%clk 0:00:21.4]} 16. h4 {[%clk 0:00:26]} 16... Qxg2 {[%clk 0:00:20.2]} 17. Rf1 {[%clk 0:00:24.9]} 17... Bg3+ {[%clk 0:00:13.9]} 18. Kd2 {[%clk 0:00:22.3]} 18... Rxe4 {[%clk 0:00:08.2]} 19. fxe4 {[%clk 0:00:19.8]} 19... Rd8+ {[%clk 0:00:07.9]} 20. Ke3 {[%clk 0:00:16.9]} 20... Bxe2 {[%clk 0:00:06]} 21. Rg1 {[%clk 0:00:14.4]} 21... Qf2# {[%clk 0:00:05.1]} 0-1

[Event "Live Chess"]
[Site "Chess.com"]
[Date "2010.12.16"]
[Round "-"]
[White "hipposcottimus"]
[Black "crossble"]
[Result "0-1"]
[CurrentPosition "5k2/4p3/7b/6q1/8/5r1K/8/8 w - -"]
[Timezone "UTC"]
[ECO "B20"]
[ECOUrl "https://www.chess.com/openings/Sicilian-Defense-Staunton-Cochrane-Variation-2...g6"]
[UTCDate "2010.12.16"]
[UTCTime "01:38:46"]
[WhiteElo "1432"]
[BlackElo "1767"]
[TimeControl "300"]
[Termination "crossble won on time"]
[StartTime "01:38:46"]
[EndDate "2010.12.16"]
[EndTime "01:48:34"]
[Link "https://www.chess.com/game/live/77724342"]

1. e4 {[%clk 0:05:00]} 1... c5 {[%clk 0:05:00]} 2. c4 {[%clk 0:04:55]} 2... g6 {[%clk 0:04:59.1]} 3. Nc3 {[%clk 0:04:52.4]} 3... Bg7 {[%clk 0:04:58.6]} 4. d3 {[%clk 0:04:49.8]} 4... Nf6 {[%clk 0:04:58.1]} 5. f4 {[%clk 0:04:42.8]} 5... O-O {[%clk 0:04:57.2]} 6. e5 {[%clk 0:04:39.1]} 6... Ne8 {[%clk 0:04:55.3]} 7. Be3 {[%clk 0:04:22.7]} 7... b6 {[%clk 0:04:53]} 8. d4 {[%clk 0:04:18.5]} 8... cxd4 {[%clk 0:04:49.2]} 9. Bxd4 {[%clk 0:04:18.2]} 9... Bb7 {[%clk 0:04:47.8]} 10. Nf3 {[%clk 0:04:14.3]} 10... Nc6 {[%clk 0:04:46.1]} 11. Be2 {[%clk 0:04:08.3]} 11... Nxd4 {[%clk 0:04:44]} 12. Qxd4 {[%clk 0:04:07.5]} 12... d6 {[%clk 0:04:40]} 13. Rd1 {[%clk 0:03:56.5]} 13... Nc7 {[%clk 0:04:33.5]} 14. Nb5 {[%clk 0:03:38]} 14... Ne6 {[%clk 0:04:18.6]} 15. Qe3 {[%clk 0:03:18.2]} 15... dxe5 {[%clk 0:04:15.7]} 16. Rxd8 {[%clk 0:03:14.9]} 16... Rfxd8 {[%clk 0:04:14]} 17. fxe5 {[%clk 0:03:09.8]} 17... a6 {[%clk 0:04:09.7]} 18. Nc3 {[%clk 0:03:02.3]} 18... Rac8 {[%clk 0:04:07.5]} 19. O-O {[%clk 0:02:56.6]} 19... Nc5 {[%clk 0:04:06.3]} 20. Ng5 {[%clk 0:02:26.4]} 20... Bh6 {[%clk 0:03:46]} 21. Qf4 {[%clk 0:02:17.6]} 21... Rf8 {[%clk 0:03:23]} 22. Bg4 {[%clk 0:02:08]} 22... Nd3 {[%clk 0:03:11.1]} 23. Qe3 {[%clk 0:01:57.9]} 23... Rcd8 {[%clk 0:03:08.6]} 24. Be2 {[%clk 0:01:46.1]} 24... Nc5 {[%clk 0:02:59.5]} 25. Qf4 {[%clk 0:01:41.7]} 25... Ne6 {[%clk 0:02:54.5]} 26. Qh4 {[%clk 0:01:15.3]} 26... Bxg5 {[%clk 0:02:48.9]} 27. Qg3 {[%clk 0:01:14.4]} 27... Bh6 {[%clk 0:02:35.1]} 28. Nd5 {[%clk 0:01:13.9]} 28... Bxd5 {[%clk 0:02:16.1]} 29. cxd5 {[%clk 0:01:12.9]} 29... Nd4 {[%clk 0:02:12.8]} 30. Bd3 {[%clk 0:01:01.9]} 30... Rxd5 {[%clk 0:01:58.1]} 31. a4 {[%clk 0:00:53.6]} 31... b5 {[%clk 0:01:53]} 32. b3 {[%clk 0:00:49.6]} 32... Nxb3 {[%clk 0:01:46]} 33. axb5 {[%clk 0:00:42.1]} 33... axb5 {[%clk 0:01:40.1]} 34. Bxg6 {[%clk 0:00:38.3]} 34... hxg6 {[%clk 0:01:35.4]} 35. Qxb3 {[%clk 0:00:35.6]} 35... Rxe5 {[%clk 0:01:26.4]} 36. Qh3 {[%clk 0:00:34.2]} 36... Bg7 {[%clk 0:01:19.6]} 37. Qg3 {[%clk 0:00:28.7]} 37... Re6 {[%clk 0:01:07.3]} 38. h4 {[%clk 0:00:24.5]} 38... b4 {[%clk 0:01:05.2]} 39. h5 {[%clk 0:00:21.5]} 39... Rb6 {[%clk 0:00:52.8]} 40. hxg6 {[%clk 0:00:18.8]} 40... fxg6 {[%clk 0:00:51.8]} 41. Qxg6 {[%clk 0:00:17.2]} 41... Rxg6 {[%clk 0:00:48]} 42. Rxf8+ {[%clk 0:00:14.3]} 42... Kxf8 {[%clk 0:00:47]} 43. Kf2 {[%clk 0:00:13.1]} 43... b3 {[%clk 0:00:46]} 44. Kf3 {[%clk 0:00:11.7]} 44... b2 {[%clk 0:00:46]} 45. Kf4 {[%clk 0:00:10.9]} 45... b1=Q {[%clk 0:00:46]} 46. g4 {[%clk 0:00:09.3]} 46... Rf6+ {[%clk 0:00:45]} 47. Kg3 {[%clk 0:00:07.9]} 47... Qg1+ {[%clk 0:00:42.9]} 48. Kh4 {[%clk 0:00:07.3]} 48... Bh6 {[%clk 0:00:38.4]} 49. g5 {[%clk 0:00:03.9]} 49... Qxg5+ {[%clk 0:00:36.6]} 50. Kh3 {[%clk 0:00:01.7]} 50... Rf3+ {[%clk 0:00:35.9]} 0-1

[Event "Live Chess"]
[Site "Chess.com"]
[Date "2010.12.16"]
[Round "-"]
[White "viewdle"]
[Black "hipposcottimus"]
[Result "1-0"]
[CurrentPosition "r1b2rk1/1p1n1ppp/p2p2q1/2pN4/3PPB2/8/PPP2PPP/R2Q1RK1 w - -"]
[Timezone "UTC"]
[ECO "C48"]
[ECOUrl "https://www.chess.com/openings/Four-Knights-Game-Spanish-Variation-Ranken-Variation-5...dxc6"]
[UTCDate "2010.12.16"]
[UTCTime "01:26:51"]
[WhiteElo "1635"]
[BlackElo "1434"]
[TimeControl "600"]
[Termination "viewdle won by resignation"]
[StartTime "01:26:51"]
[EndDate "2010.12.16"]
[EndTime "01:30:34"]
[Link "https://www.chess.com/game/live/77721704"]

1. e4 {[%clk 0:10:00]} 1... e5 {[%clk 0:10:00]} 2. Nf3 {[%clk 0:09:53.6]} 2... Nc6 {[%clk 0:09:55.1]} 3. Bb5 {[%clk 0:09:48.7]} 3... a6 {[%clk 0:09:46]} 4. Bxc6 {[%clk 0:09:43]} 4... dxc6 {[%clk 0:09:43.9]} 5. Nc3 {[%clk 0:09:39.3]} 5... Nf6 {[%clk 0:09:42.2]} 6. Nxe5 {[%clk 0:09:29.5]} 6... c5 {[%clk 0:09:30.3]} 7. O-O {[%clk 0:09:20]} 7... Bd6 {[%clk 0:09:04.2]} 8. Nc4 {[%clk 0:09:08.6]} 8... Nd7 {[%clk 0:08:46.9]} 9. Nxd6+ {[%clk 0:08:56.6]} 9... cxd6 {[%clk 0:08:44.2]} 10. d4 {[%clk 0:08:49.5]} 10... O-O {[%clk 0:08:36.1]} 11. Bf4 {[%clk 0:08:38.5]} 11... Qf6 {[%clk 0:08:17.6]} 12. Nd5 {[%clk 0:08:25.3]} 12... Qg6 {[%clk 0:07:57.9]} 1-0

[Event "Live Chess"]
[Site "Chess.com"]
[Date "2010.12.15"]
[Round "-"]
[White "hipposcottimus"]
[Black "MrMartin"]
[Result "0-1"]
[CurrentPosition "6k1/p2b1ppp/1p2p3/3pPP2/3P4/P7/6PP/r3NK2 w - -"]
[Timezone "UTC"]
[ECO "B10"]
[ECOUrl "https://www.chess.com/openings/Caro-Kann-Defense-2.Nf3-d5"]
[UTCDate "2010.12.15"]
[UTCTime "23:48:12"]
[WhiteElo "1618"]
[BlackElo "1662"]
[TimeControl "60"]
[Termination "MrMartin won on time"]
[StartTime "23:48:12"]
[EndDate "2010.12.15"]
[EndTime "23:49:53"]
[Link "https://www.chess.com/game/live/77699128"]

1. e4 {[%clk 0:01:00]} 1... c6 {[%clk 0:01:00]} 2. Nf3 {[%clk 0:00:59.6]} 2... d5 {[%clk 0:01:00]} 3. e5 {[%clk 0:00:59.3]} 3... e6 {[%clk 0:00:58.6]} 4. d4 {[%clk 0:00:58.6]} 4... c5 {[%clk 0:00:58.6]} 5. c3 {[%clk 0:00:57.4]} 5... Nc6 {[%clk 0:00:58]} 6. Nbd2 {[%clk 0:00:55.5]} 6... Qb6 {[%clk 0:00:57.4]} 7. Nb3 {[%clk 0:00:52.1]} 7... cxd4 {[%clk 0:00:54.9]} 8. cxd4 {[%clk 0:00:51.1]} 8... Bd7 {[%clk 0:00:53.7]} 9. Be2 {[%clk 0:00:48.6]} 9... Bb4+ {[%clk 0:00:53]} 10. Bd2 {[%clk 0:00:47.1]} 10... Bxd2+ {[%clk 0:00:52.4]} 11. Qxd2 {[%clk 0:00:46.9]} 11... Qb4 {[%clk 0:00:51.6]} 12. O-O {[%clk 0:00:43.8]} 12... Qxd2 {[%clk 0:00:50.3]} 13. Nbxd2 {[%clk 0:00:43.6]} 13... Nge7 {[%clk 0:00:48.8]} 14. Nb3 {[%clk 0:00:43.2]} 14... Nf5 {[%clk 0:00:47.7]} 15. Nc5 {[%clk 0:00:41.5]} 15... Bc8 {[%clk 0:00:45.4]} 16. Bb5 {[%clk 0:00:38.5]} 16... Ne7 {[%clk 0:00:40.4]} 17. Bxc6+ {[%clk 0:00:36.9]} 17... Nxc6 {[%clk 0:00:39]} 18. Nb3 {[%clk 0:00:36.4]} 18... O-O {[%clk 0:00:37.2]} 19. Nfd2 {[%clk 0:00:32.7]} 19... b6 {[%clk 0:00:36.4]} 20. f4 {[%clk 0:00:32.3]} 20... Bd7 {[%clk 0:00:35]} 21. Nf3 {[%clk 0:00:32]} 21... Rac8 {[%clk 0:00:33.3]} 22. Nh4 {[%clk 0:00:31.6]} 22... Nb4 {[%clk 0:00:32.2]} 23. a3 {[%clk 0:00:28.8]} 23... Nc2 {[%clk 0:00:31]} 24. Rad1 {[%clk 0:00:26.5]} 24... Ne3 {[%clk 0:00:31]} 25. Rc1 {[%clk 0:00:22.8]} 25... Nxf1 {[%clk 0:00:30.3]} 26. Rxc8 {[%clk 0:00:21]} 26... Rxc8 {[%clk 0:00:28.4]} 27. Kxf1 {[%clk 0:00:20.8]} 27... Rc2 {[%clk 0:00:27.5]} 28. f5 {[%clk 0:00:16.1]} 28... Rxb2 {[%clk 0:00:25.5]} 29. Nc1 {[%clk 0:00:13.2]} 29... Rb1 {[%clk 0:00:23.9]} 30. Nf3 {[%clk 0:00:11]} 30... Rxc1+ {[%clk 0:00:23.9]} 31. Ne1 {[%clk 0:00:10.7]} 31... Ra1 {[%clk 0:00:23.9]} 0-1

[Event "Live Chess"]
[Site "Chess.com"]
[Date "2010.12.15"]
[Round "-"]
[White "hipposcottimus"]
[Black "MrMartin"]
[Result "0-1"]
[CurrentPosition "8/3n1pkp/4p1p1/8/3K4/7r/8/8 w - -"]
[Timezone "UTC"]
[ECO "B12"]
[ECOUrl "https://www.chess.com/openings/Caro-Kann-Defense-Advance-Variation"]
[UTCDate "2010.12.15"]
[UTCTime "23:44:47"]
[WhiteElo "1618"]
[BlackElo "1662"]
[TimeControl "60"]
[Termination "MrMartin won on time"]
[StartTime "23:44:47"]
[EndDate "2010.12.15"]
[EndTime "23:46:56"]
[Link "https://www.chess.com/game/live/77698542"]

1. e4 {[%clk 0:01:00]} 1... c6 {[%clk 0:01:00]} 2. d4 {[%clk 0:00:58.3]} 2... d5 {[%clk 0:01:00]} 3. e5 {[%clk 0:00:57.9]} 3... e6 {[%clk 0:00:58.7]} 4. c4 {[%clk 0:00:57.4]} 4... c5 {[%clk 0:00:58.7]} 5. cxd5 {[%clk 0:00:56.2]} 5... Qxd5 {[%clk 0:00:58.7]} 6. Nf3 {[%clk 0:00:54.4]} 6... cxd4 {[%clk 0:00:57.1]} 7. Qxd4 {[%clk 0:00:52]} 7... Qxd4 {[%clk 0:00:56.2]} 8. Nxd4 {[%clk 0:00:51.3]} 8... Bc5 {[%clk 0:00:53.7]} 9. Be3 {[%clk 0:00:50.5]} 9... Ne7 {[%clk 0:00:51.6]} 10. Nc3 {[%clk 0:00:46.9]} 10... Nbc6 {[%clk 0:00:47.1]} 11. Ncb5 {[%clk 0:00:43.7]} 11... Bxd4 {[%clk 0:00:44]} 12. Nc7+ {[%clk 0:00:41.3]} 12... Kd7 {[%clk 0:00:42.7]} 13. Nxa8 {[%clk 0:00:39.8]} 13... Bxe3 {[%clk 0:00:41.8]} 14. fxe3 {[%clk 0:00:38.5]} 14... b6 {[%clk 0:00:39.9]} 15. Rd1+ {[%clk 0:00:37.4]} 15... Ke8 {[%clk 0:00:37.9]} 16. Bb5 {[%clk 0:00:36.3]} 16... Bb7 {[%clk 0:00:34.1]} 17. Nc7+ {[%clk 0:00:35.7]} 17... Kf8 {[%clk 0:00:32.9]} 18. Na6 {[%clk 0:00:34.1]} 18... Bxa6 {[%clk 0:00:30.9]} 19. Bxa6 {[%clk 0:00:33.8]} 19... g6 {[%clk 0:00:30.1]} 20. O-O {[%clk 0:00:32]} 20... Kg7 {[%clk 0:00:29.2]} 21. Bd3 {[%clk 0:00:26.5]} 21... Nxe5 {[%clk 0:00:27.8]} 22. Bc2 {[%clk 0:00:25]} 22... Nd5 {[%clk 0:00:26.3]} 23. Bb3 {[%clk 0:00:23.9]} 23... Nxe3 {[%clk 0:00:25.2]} 24. Rd3 {[%clk 0:00:22.4]} 24... Nxf1 {[%clk 0:00:24.3]} 25. Kxf1 {[%clk 0:00:22.1]} 25... Nxd3 {[%clk 0:00:23.3]} 26. Ke2 {[%clk 0:00:21.3]} 26... Nxb2 {[%clk 0:00:22.8]} 27. Kd2 {[%clk 0:00:19.8]} 27... Rc8 {[%clk 0:00:20.6]} 28. Bc2 {[%clk 0:00:17.5]} 28... Nc4+ {[%clk 0:00:19.5]} 29. Kc1 {[%clk 0:00:17]} 29... Ne5 {[%clk 0:00:19.5]} 30. Kd1 {[%clk 0:00:16.2]} 30... Nc4 {[%clk 0:00:17.9]} 31. Bb3 {[%clk 0:00:15.8]} 31... Ne5 {[%clk 0:00:16.8]} 32. Ke2 {[%clk 0:00:14]} 32... a5 {[%clk 0:00:16.3]} 33. Bd1 {[%clk 0:00:07.8]} 33... b5 {[%clk 0:00:15.5]} 34. Ke1 {[%clk 0:00:07.5]} 34... a4 {[%clk 0:00:14.5]} 35. Be2 {[%clk 0:00:07.2]} 35... Rc1+ {[%clk 0:00:13]} 36. Kd2 {[%clk 0:00:05.7]} 36... Ra1 {[%clk 0:00:13]} 37. Bxb5 {[%clk 0:00:04.2]} 37... Rxa2+ {[%clk 0:00:13]} 38. Kc3 {[%clk 0:00:02.4]} 38... Rxg2 {[%clk 0:00:13]} 39. Bxa4 {[%clk 0:00:01.3]} 39... Rxh2 {[%clk 0:00:13]} 40. Bd7 {[%clk 0:00:00.9]} 40... Rh3+ {[%clk 0:00:11.1]} 41. Kd4 {[%clk 0:00:00.6]} 41... Nxd7 {[%clk 0:00:11.1]} 0-1

[Event "Live Chess"]
[Site "Chess.com"]
[Date "2010.12.15"]
[Round "-"]
[White "Snart"]
[Black "hipposcottimus"]
[Result "0-1"]
[CurrentPosition "r1b2rk1/ppp1bppp/8/2P5/3Pp1n1/1RN3Pq/P1PB1P1P/3Q1RK1 w - -"]
[Timezone "UTC"]
[ECO "C45"]
[ECOUrl "https://www.chess.com/openings/Scotch-Game"]
[UTCDate "2010.12.15"]
[UTCTime "23:42:23"]
[WhiteElo "1462"]
[BlackElo "1618"]
[TimeControl "60"]
[Termination "hipposcottimus won on time"]
[StartTime "23:42:23"]
[EndDate "2010.12.15"]
[EndTime "23:43:55"]
[Link "https://www.chess.com/game/live/77697935"]

1. e4 {[%clk 0:01:00]} 1... e5 {[%clk 0:01:00]} 2. Nf3 {[%clk 0:00:57.8]} 2... Nc6 {[%clk 0:00:59.7]} 3. d4 {[%clk 0:00:56.8]} 3... d5 {[%clk 0:00:57.7]} 4. exd5 {[%clk 0:00:54.3]} 4... e4 {[%clk 0:00:56.7]} 5. Ne5 {[%clk 0:00:51.9]} 5... Qxd5 {[%clk 0:00:53.3]} 6. b3 {[%clk 0:00:46.6]} 6... Nxe5 {[%clk 0:00:51.1]} 7. Bc4 {[%clk 0:00:43.8]} 7... Nxc4 {[%clk 0:00:49.5]} 8. bxc4 {[%clk 0:00:42.5]} 8... Qa5+ {[%clk 0:00:49]} 9. Bd2 {[%clk 0:00:40.2]} 9... Qf5 {[%clk 0:00:47.9]} 10. Nc3 {[%clk 0:00:36.4]} 10... Nf6 {[%clk 0:00:44.9]} 11. O-O {[%clk 0:00:27.3]} 11... Bd6 {[%clk 0:00:40.2]} 12. g3 {[%clk 0:00:22.8]} 12... O-O {[%clk 0:00:38.1]} 13. c5 {[%clk 0:00:21.1]} 13... Be7 {[%clk 0:00:32.9]} 14. Rb1 {[%clk 0:00:11.5]} 14... Qh3 {[%clk 0:00:32.4]} 15. Rb3 {[%clk 0:00:04.8]} 15... Ng4 {[%clk 0:00:31.4]} 0-1